bitfinex-derivatives/quotes_ETHF0:USTF0_20250627
["timestamp","ask_amount","ask_price","bid_price","bid_amount"]
[1750990888385,0.4109,2432.9,2432.4,0.6761]
[1750990888579,7.2751,2433.0,2432.5,0.41095]
[1750990888778,7.2751,2433.0,2432.4,0.6761]
[1750990889181,0.4109,2432.8,2432.5,0.41094]
[1750990889481,0.41094,2432.6,2432.4,0.6761]
[1750990889674,0.41095,2432.5,2432.4,0.6761]
[1750990892284,0.41094,2432.6,2432.4,0.6761]
[1750990892589,0.41093,2432.7,2432.4,3.76400042]
[1750990894689,7.2751,2433.0,2432.4,3.35303042]
[1750990894988,0.41094,2432.6,2432.4,3.35303042]
[1750990895680,0.41095,2432.5,2432.4,3.35303042]
[1750990896290,0.41097,2432.4,2432.3,3.2078]
[1750990900184,0.41096,2432.5,2432.3,3.2078]
[1750990900385,0.41096,2432.5,2432.3,3.61878]
[1750990900691,0.41096,2432.5,2432.3,5.02008]
[1750990900891,0.41097,2432.4,2432.3,4.6091]
[1750990902491,0.41097,2432.4,2432.3,3.2078]
[1750990905995,0.41096,2432.5,2432.3,3.61879]
[1750990906698,0.41096,2432.5,2432.4,1.3314]
[1750990907296,0.41095,2432.5,2432.4,4.00833042]
[1750990908603,0.41095,2432.5,2432.4,1.3314]
[1750990909600,0.41097,2432.4,2432.3,3.8859]
[1750990909898,0.41097,2432.4,2432.3,3.2078]
[1750990910498,2.67693042,2432.6,2432.1,2.32702308]
[1750990910800,0.41099,2432.3,2432.1,2.73804308]
[1750990911101,0.411,2432.3,2432.1,2.32702308]
[1750990912492,0.411,2432.3,2432.1,3.66102308]
[1750990912998,0.411,2432.2,2432.1,3.66102308]
[1750990913500,0.411,2432.3,2432.1,3.66102308]
[1750990913703,4.05003042,2432.6,2432.1,3.66102308]
[1750990914001,1.3731,2432.6,2432.1,3.66102308]
[1750990914198,0.41099,2432.3,2432.1,3.66102308]
[1750990914399,1.3731,2432.6,2432.1,3.66102308]
[1750990915406,0.41099,2432.3,2432.1,4.07204308]
[1750990916302,0.41098,2432.4,2432.2,0.411]
[1750990916599,0.41098,2432.3,2432.1,4.07203308]
[1750990917402,0.41098,2432.4,2432.2,0.411]
[1750990917698,0.41098,2432.4,2432.2,3.08793042]
[1750990918298,0.41098,2432.4,2432.2,2.67693042]
[1750990918495,0.41098,2432.3,2432.2,2.67693042]
[1750990919605,0.41099,2432.3,2432.1,2.73803308]
[1750990919801,0.41099,2432.3,2432.1,4.07443308]
[1750990920003,0.41098,2432.4,2432.2,4.7145535]
[1750990920203,0.41098,2432.4,2432.2,6.0509535]
[1750990920504,0.41098,2432.4,2432.3,1.3364]
[1750990920698,0.41097,2432.4,2432.3,1.74738]
[1750990921202,0.41097,2432.4,2432.3,1.3364]
[1750990921898,0.41098,2432.3,2432.2,1.62662308]
[1750990922099,0.411,2432.2,2432.1,2.32702308]
[1750990923205,0.41102,2432.1,2432.0,2.73296308]
[1750990923400,12.21880977,2432.7,2432.0,4.04443042]
[1750990923605,2.46100977,2432.7,2432.5,0.41094]
[1750990923807,9.67770977,2432.8,2432.5,0.41094]
[1750990923998,0.41092,2432.7,2432.6,0.7113]
[1750990924304,7.62761,2432.8,2432.6,1.12223]
[1750990924604,0.41092,2432.7,2432.6,0.7113]
[1750990930504,9.01100977,2433.1,2432.6,3.38823042]
[1750990930704,9.01100977,2433.1,2433.0,0.41087]
[1750990930705,2.46100977,2433.1,2433.0,0.41087]
[1750990930910,0.41084,2433.2,2433.0,0.41086]
[1750990931103,0.41084,2433.2,2433.0,3.22526]
[1750990931408,2.87183977,2433.3,2433.1,0.41085]
[1750990931608,10.16861,2433.4,2433.2,0.41083]
[1750990931803,3.2078,2433.4,2433.3,3.08775042]
[1750990932408,3.61855,2433.7,2433.4,0.41079]
[1750990932705,3.61855,2433.7,2433.5,1.4507]
[1750990932918,3.61855,2433.7,2433.5,2.1499]
[1750990933103,3.61855,2433.7,2433.5,2.8662]
[1750990933603,3.61855,2433.7,2433.5,5.54313042]
[1750990934609,3.2078,2433.7,2433.5,5.54313042]
[1750990934912,3.2078,2433.7,2433.6,0.41077]
[1750990935207,6.96072,2433.9,2433.6,0.41077]
[1750990935208,0.41072,2433.9,2433.6,1.74077]
[1750990935710,0.41073,2433.8,2433.6,1.33]
[1750990935905,11.96783042,2434.2,2433.7,2.67693042]
[1750990935906,2.7419,2434.2,2433.7,2.67693042]
[1750990936124,7.9417,2434.2,2433.8,4.5378]
[1750990936413,8.35237,2434.2,2433.9,0.41071]
[1750990936610,1.80337,2434.2,2433.9,2.43981]
[1750990936806,0.41068,2434.1,2433.9,2.0291]
[1750990937200,0.4107,2434.0,2433.9,2.0291]
[1750990937399,1.3927,2434.2,2433.9,0.6991]
[1750990937696,0.4107,2434.0,2433.9,0.6991]
[1750990938097,0.41069,2434.1,2433.9,0.6991]
[1750990938504,0.4107,2434.0,2433.9,0.6991]
[1750990939008,0.41069,2434.1,2433.9,0.6991]
[1750990939215,0.41069,2434.1,2433.9,1.10981]
[1750990939508,0.41069,2434.1,2433.9,0.6991]
[1750990939718,0.4107,2434.0,2433.9,2.1464]
[1750990940104,0.41069,2434.1,2433.9,2.1464]
[1750990940508,0.4107,2434.0,2433.9,2.1464]
[1750990940905,0.41069,2434.1,2433.9,2.1464]
[1750990941408,0.4107,2434.0,2433.9,2.1464]
[1750990942716,0.41069,2434.1,2433.9,2.1464]
[1750990943105,1.3927,2434.2,2433.9,2.1464]
[1750990943316,0.41068,2434.1,2433.9,2.1464]
[1750990943509,0.4107,2434.0,2433.9,0.6991]
[1750990943809,0.41069,2434.1,2433.9,1.10981]
[1750990944610,0.4107,2434.0,2433.9,0.6991]
[1750990945217,0.41071,2433.9,2433.8,3.2078]
[1750990946011,0.41071,2434.0,2433.8,3.2078]
[1750990946221,0.41071,2433.9,2433.8,3.2078]
[1750990947222,0.41071,2434.0,2433.8,3.61853]
[1750990947525,0.41071,2434.0,2433.8,5.88473042]
[1750990947824,0.41071,2434.0,2433.8,7.31573042]
[1750990948132,0.4107,2434.1,2433.8,7.31573042]
[1750990948323,0.4107,2434.0,2433.8,7.72646042]
[1750990948526,0.41071,2433.9,2433.8,7.31573042]
[1750990948826,0.41071,2434.0,2433.8,7.72646042]
[1750990950121,0.41069,2434.1,2433.9,0.41071]
[1750990950521,0.4107,2434.0,2433.8,7.72645042]
[1750990951226,0.41071,2433.9,2433.8,3.2078]
[1750990951926,6.45053042,2434.2,2433.5,0.7163]
[1750990951927,0.41077,2433.6,2433.5,3.2078]
[1750990954827,1.86777,2433.6,2433.5,3.2078]
[1750990955735,1.457,2433.6,2433.1,3.2078]
[1750990955941,0.41083,2433.2,2433.1,3.2078]
[1750990956124,1.457,2433.6,2433.1,3.2078]
[1750990956321,10.482,2433.7,2433.3,2.67693042]
[1750990956527,0.7302,2433.7,2433.5,6.29551042]
[1750990956823,0.41077,2433.6,2433.5,6.29551042]
[1750990957233,0.7302,2433.7,2433.5,5.88473042]
[1750990957537,0.41077,2433.6,2433.5,5.88473042]
[1750990958233,0.41077,2433.6,2433.5,3.2078]
[1750990959035,1.14096,2433.7,2433.5,3.61858]
[1750990959338,0.41077,2433.6,2433.5,3.2078]
[1750990960139,3.40713042,2433.7,2433.4,0.7309]
[1750990960428,0.41078,2433.5,2433.4,0.7309]
[1750990960833,0.41082,2433.3,2433.2,3.2078]
[1750990961129,0.41082,2433.3,2433.2,3.8978]
[1750990961330,5.88473042,2433.5,2433.0,2.0426]
[1750990961530,0.41085,2433.1,2433.0,0.69]
[1750990962025,0.41087,2433.0,2432.9,1.63349035]
[1750990962230,0.41087,2433.0,2432.8,0.4109]
[1750990962430,0.41087,2433.0,2432.9,3.2078]
[1750990963428,1.11572,2433.4,2433.1,0.41084]
[1750990963626,0.7302,2433.7,2433.2,5.88473042]
[1750990963832,0.7302,2433.7,2433.5,2.67693042]
[1750990964053,0.7302,2433.7,2433.3,5.95544042]
[1750990964438,0.41079,2433.5,2433.3,5.54463042]
[1750990964636,0.4108,2433.4,2433.3,1.4418]
[1750990964835,0.7048,2433.6,2433.3,1.4418]
[1750990965339,0.4108,2433.4,2433.3,1.4418]
[1750990966938,0.41082,2433.3,2433.2,3.2078]
[1750990971342,0.41081,2433.4,2433.2,3.61863]
[1750990971744,0.41081,2433.4,2433.2,3.61862]
[1750990972842,0.4108,2433.5,2433.3,0.41082]
[1750990973239,0.7048,2433.6,2433.3,1.81762]
[1750990973440,0.4108,2433.4,2433.3,1.4068]
[1750990974145,0.41082,2433.3,2433.2,3.2078]
[1750990977046,0.41082,2433.3,2433.2,4.5637]
[1750990978641,0.4108,2433.4,2433.2,4.97452]
[1750990979339,0.41082,2433.3,2433.2,4.97452]
[1750990979750,0.41082,2433.3,2433.2,4.5637]
[1750990979950,0.41082,2433.3,2433.2,3.2078]
[1750990981351,0.41082,2433.3,2433.2,4.5576]
[1750990982548,6.54,2433.5,2433.3,0.41081]
[1750990982743,7.2448,2433.6,2433.3,3.08774042]
[1750990982946,0.4108,2433.4,2433.3,4.02673042]
[1750990983144,0.4108,2433.4,2433.3,4.43755042]
[1750990983345,0.41079,2433.5,2433.3,4.02673042]
[1750990983546,0.41079,2433.5,2433.4,1.3338]
[1750990983953,0.41079,2433.5,2433.4,1.7446]
[1750990984452,0.41079,2433.5,2433.4,1.3338]
[1750990985254,0.41079,2433.5,2433.4,1.7446]
[1750990985754,0.41079,2433.5,2433.4,1.3338]
[1750990986353,6.95076,2433.7,2433.5,0.41078]
[1750990986548,3.61854,2433.8,2433.6,1.14296]
[1750990986852,3.61854,2433.8,2433.7,2.67693042]
[1750990987052,0.41074,2433.8,2433.7,2.67693042]
[1750990987652,0.41075,2433.7,2433.6,2.1579]
[1750990990362,0.41074,2433.8,2433.6,2.56867]
[1750990990951,0.41075,2433.7,2433.6,2.1579]
[1750990996270,0.6909,2434.1,2433.6,4.83483042]
[1750990996457,0.41069,2434.1,2434.0,2.67693042]
[1750990996649,3.8997,2434.2,2433.7,1.3671]
[1750990996650,0.41073,2433.9,2433.7,1.3671]
[1750990996853,0.41073,2433.9,2433.7,4.45477042]
[1750990997046,0.41071,2434.0,2433.8,0.41073]
[1750990997249,0.41071,2434.0,2433.8,4.98563]
[1750990997455,0.41071,2434.0,2433.9,1.3671]
[1750990998654,0.41071,2434.0,2433.9,2.0657]
[1750990998855,0.41071,2434.0,2433.8,3.61853]
[1750990998856,0.41071,2433.9,2433.8,3.2078]
[1750990999057,3.70370042,2434.0,2433.6,0.7322]
[1750990999258,0.41075,2433.7,2433.6,0.7322]
[1750991000061,1.35048683,2433.7,2433.6,0.7322]
[1750991002165,0.93973683,2433.7,2433.6,1.14297]
[1750991002568,0.93973683,2433.7,2433.6,2.61077]
[1750991004461,10.4166,2434.2,2433.8,0.41073]
[1750991004660,0.93960742,2434.1,2433.7,4.54967042]
[1750991004869,0.41072,2433.9,2433.8,1.462]
[1750991005063,1.35032742,2433.9,2433.8,1.87273]
[1750991005363,0.93960742,2433.9,2433.8,1.87273]
[1750991005562,0.4107,2434.0,2433.8,1.87273]
[1750991005765,0.4107,2434.0,2433.9,1.462]
[1750991005957,0.93938372,2434.1,2433.8,0.41073]
[1750991006157,1.35009372,2434.0,2433.8,1.87273]
[1750991006353,0.41072,2433.9,2433.7,3.61854]
[1750991006567,0.41073,2433.8,2433.7,7.34673042]
[1750991007367,0.41073,2433.8,2433.7,3.2078]
[1750991008156,1.35002874,2433.8,2433.7,3.2078]
[1750991010862,0.41078,2433.5,2433.4,0.7151]
[1750991011970,0.4108,2433.4,2433.3,5.88473042]
[1750991012272,0.4108,2433.4,2433.3,6.56403042]
[1750991016983,0.4108,2433.4,2433.3,3.2078]
[1750991017382,1.35107724,2433.4,2433.3,3.2078]
[1750991018181,1.35128347,2433.4,2433.3,3.2078]
[1750991018586,1.35128347,2433.4,2433.3,5.88473042]
[1750991018790,0.94048347,2433.4,2433.3,6.29555042]
[1750991019285,0.41078,2433.6,2433.4,0.4108]
[1750991019483,0.41076,2433.7,2433.5,3.35403042]
[1750991019689,9.7418,2433.9,2433.5,3.35403042]
[1750991019690,1.35283277,2433.6,2433.5,3.35403042]
[1750991020103,0.94206277,2433.6,2433.5,3.35403042]
[1750991020482,0.94206277,2433.6,2433.5,3.76481042]
[1750991020682,1.35283277,2433.6,2433.5,3.35403042]
[1750991027100,0.94206277,2433.6,2433.5,3.76481042]
[1750991028299,1.35283277,2433.6,2433.5,3.76481042]
[1750991029102,0.41077,2433.6,2433.5,3.76481042]
[1750991029298,0.41077,2433.6,2433.5,0.6771]
[1750991029597,0.4108,2433.4,2433.3,3.2078]
[1750991030398,1.35260756,2433.4,2433.3,3.2078]
[1750991031809,0.41085,2433.1,2433.0,9.7418]
[1750991032100,0.41085,2433.1,2433.0,5.64497881]
[1750991032409,0.41085,2433.1,2433.0,3.2078]
[1750991034002,1.35269388,2433.1,2433.0,3.2078]
[1750991034606,0.41085,2433.1,2433.0,3.2078]
[1750991034996,1.35239928,2433.1,2433.0,3.2078]
[1750991035505,0.41085,2433.1,2433.0,3.2078]
[1750991035703,0.41084,2433.2,2433.0,3.2078]
[1750991035902,0.41083,2433.3,2433.1,2.67693042]
[1750991036102,0.41083,2433.3,2433.2,0.6997]
[1750991036398,1.3521642,2433.3,2433.2,0.6997]
[1750991041309,0.9413342,2433.3,2433.2,1.11053]
[1750991041498,0.9413342,2433.3,2433.2,3.25703]
[1750991041704,0.41074,2433.8,2433.6,0.41076]
[1750991042008,0.41074,2433.8,2433.7,4.81523042]
[1750991042199,1.35259855,2433.8,2433.7,4.81523042]
[1750991044405,0.41075,2433.7,2433.6,3.2078]
[1750991044611,1.35260855,2433.7,2433.6,3.2078]
[1750991045600,0.94185855,2433.7,2433.6,5.88473042]
[1750991046001,0.94185855,2433.7,2433.6,6.29550042]
[1750991046207,0.94185855,2433.7,2433.6,5.88473042]
[1750991047120,1.35260855,2433.7,2433.6,5.88473042]
[1750991047311,0.94185855,2433.7,2433.6,5.88473042]
[1750991047510,0.94185855,2433.7,2433.6,6.29550042]
[1750991047717,0.94185855,2433.7,2433.6,5.88473042]
[1750991048026,1.35260855,2433.7,2433.6,3.2078]
[1750991048207,3.61878897,2433.7,2433.3,3.2078]
[1750991048409,1.35262855,2433.6,2433.4,0.41079]
[1750991048609,0.94185855,2433.5,2433.4,0.41079]
[1750991049507,0.94185855,2433.5,2433.3,7.02704042]
[1750991049714,0.94185855,2433.4,2433.3,7.02704042]
[1750991049915,0.94185855,2433.5,2433.3,8.35534042]
[1750991050119,1.35263855,2433.5,2433.3,5.67841]
[1750991050420,0.94185855,2433.4,2433.3,5.67841]
[1750991054916,1.35265855,2433.4,2433.3,3.2078]
[1750991055223,2.03515855,2433.4,2433.3,3.2078]
[1750991059219,3.45055855,2433.4,2433.3,3.2078]
[1750991059618,8.45055855,2433.4,2433.3,3.2078]
[1750991059816,15.59379855,2433.4,2432.8,3.08783042]
[1750991060017,0.41087,2433.0,2432.8,4.55072042]
[1750991060619,0.41088,2432.9,2432.8,4.13983042]
[1750991061323,0.41088,2432.9,2432.8,4.86843042]
[1750991061622,0.41088,2433.0,2432.8,5.27932042]
[1750991062530,0.41086,2433.1,2432.9,0.41088]
[1750991062724,0.41086,2433.1,2433.0,2.67693042]
[1750991063116,1.35420034,2433.1,2433.0,4.09353042]
[1750991063930,1.35420034,2433.1,2433.0,2.67693042]
[1750991065518,0.94334034,2433.1,2433.0,0.41087]
[1750991065723,0.94334034,2433.1,2433.0,3.08780042]
[1750991065923,1.35419034,2433.1,2433.0,2.67693042]
[1750991066630,0.94334034,2433.1,2433.0,3.08780042]
[1750991066831,1.35419034,2433.1,2433.0,2.67693042]
[1750991067034,0.94334034,2433.1,2433.0,3.08780042]
[1750991068131,0.94334034,2433.1,2433.0,2.67693042]
[1750991069431,0.94334034,2433.1,2433.0,3.08780042]
[1750991071930,0.41082,2433.3,2433.1,0.41084]
[1750991072124,0.41082,2433.3,2433.2,0.6974]
[1750991072330,1.35400197,2433.3,2433.2,0.6974]
[1750991073233,0.41084,2433.2,2433.0,3.08778042]
[1750991073431,0.94318197,2433.1,2433.0,3.81318042]
[1750991073951,1.35403197,2433.1,2433.0,0.7254]
[1750991074238,0.94318197,2433.1,2433.0,1.13627]
[1750991075530,1.35403197,2433.1,2433.0,1.13627]
[1750991075737,1.35403197,2433.1,2433.0,0.7254]
[1750991076735,1.35403197,2433.1,2432.9,0.41087]
[1750991076940,0.7328,2433.0,2432.9,0.41087]
[1750991077140,1.14368,2433.0,2432.8,1.0936]
[1750991077640,0.41088,2432.9,2432.8,0.6827]
[1750991077838,2.67693042,2432.9,2432.6,2.43717881]
[1750991078028,0.41093,2432.6,2432.5,0.6827]
[1750991078228,0.41095,2432.5,2432.4,6.519]
[1750991078538,1.14375,2432.5,2432.4,6.519]
[1750991078938,1.14375,2432.5,2432.3,4.30148]
[1750991079644,0.41097,2432.4,2432.3,3.8905]
[1750991080047,0.41099,2432.3,2432.1,7.83139812]
[1750991080541,0.41099,2432.3,2432.0,3.899]
[1750991080738,0.41099,2432.3,2432.1,0.41101]
[1750991081248,0.41099,2432.3,2432.1,3.08794042]
[1750991082444,0.41097,2432.4,2432.1,3.08794042]
[1750991082747,0.41099,2432.3,2432.1,0.41101]
[1750991083043,1.13848,2432.4,2432.1,3.08794042]
[1750991083444,0.41099,2432.3,2432.1,3.08794042]
[1750991083642,1.13848,2432.4,2432.1,3.08794042]
[1750991083839,1.13848,2432.4,2432.0,5.3102]
[1750991083840,1.14376,2432.5,2432.3,2.67693042]
[1750991084343,0.41097,2432.4,2432.3,2.67693042]
[1750991084742,0.7328,2432.5,2432.2,2.67693042]
[1750991084942,0.7328,2432.5,2432.3,0.41098]
[1750991084943,1.14376,2432.5,2432.3,0.41098]
[1750991085135,0.41095,2432.5,2432.1,1.362]
[1750991085379,0.41095,2432.5,2432.4,2.67693042]
[1750991086849,6.93094,2432.6,2432.4,3.75450042]
[1750991087041,1.07752,2432.7,2432.5,0.41094]
[1750991087350,3.2078,2432.8,2432.6,2.67693042]
[1750991087645,0.94038174,2432.7,2432.6,3.08786042]
[1750991087844,0.94038174,2432.7,2432.6,4.53126042]
[1750991088043,0.94038174,2432.7,2432.6,4.12033042]
[1750991088242,0.41093,2432.6,2432.5,0.684]
[1750991088435,0.41093,2432.7,2432.5,0.684]
[1750991088639,0.41093,2432.7,2432.5,2.53835]
[1750991089448,0.41091,2432.8,2432.5,2.53835]
[1750991089749,6.52,2432.9,2432.5,2.53835]
[1750991089750,0.41092,2432.7,2432.5,2.53835]
[1750991091348,0.41092,2432.7,2432.5,2.1274]
[1750991091947,0.41092,2432.7,2432.5,2.53835]
[1750991092954,0.41091,2432.8,2432.6,0.41093]
[1750991094448,0.41091,2432.8,2432.5,2.53834]
[1750991094758,0.41093,2432.6,2432.5,0.684]
[1750991095450,1.11533,2432.6,2432.5,0.684]
[1750991096451,1.11535,2432.6,2432.4,1.07757]
[1750991097446,0.7044,2432.6,2432.5,0.41095]
[1750991097752,1.11533,2432.6,2432.4,2.43826]
[1750991098249,3.61873,2432.7,2432.5,3.08788042]
[1750991098552,0.41093,2432.7,2432.5,4.44858042]
[1750991098848,5.86583042,2433.0,2432.7,0.41092]
[1750991098849,6.9229,2432.9,2432.7,0.41092]
[1750991099047,0.94073025,2432.8,2432.7,0.41092]
[1750991099444,0.94073025,2432.8,2432.6,4.54795042]
[1750991099645,0.41091,2432.8,2432.6,1.87102]
[1750991100951,0.41093,2432.6,2432.5,2.67693042]
[1750991101451,0.41091,2432.8,2432.6,0.41093]
[1750991101651,6.512,2432.9,2432.5,2.67693042]
[1750991101652,1.3520043,2432.7,2432.5,3.08787042]
[1750991101951,0.41092,2432.7,2432.5,3.08787042]
[1750991103253,0.41091,2432.8,2432.6,0.41093]
[1750991103453,0.94123218,2432.7,2432.6,0.41093]
[1750991104153,0.94123218,2432.7,2432.6,1.87163]
[1750991104846,0.41091,2432.8,2432.6,1.87163]
[1750991105248,0.94183899,2432.7,2432.6,1.87163]
[1750991105848,6.512,2432.9,2432.7,0.4109]
[1750991105849,0.41089,2432.9,2432.7,0.4109]
[1750991106147,0.94182746,2432.8,2432.7,1.785]
[1750991113061,0.94182746,2432.8,2432.7,4.46193042]
[1750991113559,0.41088,2433.0,2432.7,4.46193042]
[1750991113560,0.41088,2433.0,2432.8,0.4109]
[1750991113755,0.9422458,2432.9,2432.8,0.4109]
[1750991114856,0.9422458,2432.9,2432.8,2.4705]
[1750991116156,0.9422458,2432.9,2432.8,3.1503]
[1750991117159,0.6876,2433.3,2433.2,0.41083]
[1750991117456,0.94204745,2433.3,2433.0,3.2078]
[1750991117763,1.66954745,2433.2,2433.0,0.41086]
[1750991118059,0.94204745,2433.1,2433.0,0.41086]
[1750991118359,0.94204745,2433.1,2433.0,3.61866]
[1750991118666,0.94204745,2433.1,2433.0,5.00326]
[1750991119063,7.2441,2433.5,2433.3,0.41081]
[1750991119266,7.65488,2433.5,2433.4,0.7255]
[1750991119565,1.67366512,2433.5,2433.4,0.7255]
[1750991120562,2.08444512,2433.5,2433.4,0.7255]
[1750991120951,1.67366512,2433.5,2433.4,0.7255]
[1750991121766,1.67366512,2433.5,2433.4,1.1363]
[1750991122365,1.67366512,2433.5,2433.4,0.7255]
[1750991123363,2.08444512,2433.5,2433.4,0.7255]
[1750991123962,0.41081,2433.4,2433.2,3.08775042]
[1750991124164,0.41081,2433.4,2433.2,3.81255042]
[1750991124467,1.14289,2433.5,2433.2,1.13562]
[1750991124767,0.4108,2433.4,2433.2,1.13562]
[1750991125369,1.14289,2433.5,2433.2,1.13562]
[1750991125661,1.14289,2433.5,2433.3,0.41081]
[1750991126064,1.14289,2433.5,2433.2,1.13562]
[1750991126261,0.4108,2433.4,2433.2,1.13562]
[1750991126971,1.14289,2433.5,2433.3,0.41082]
[1750991127269,1.14289,2433.5,2433.2,1.13562]
[1750991127758,1.14289,2433.5,2433.2,3.9326]
[1750991127964,1.14289,2433.5,2433.3,0.41081]
[1750991128668,0.4108,2433.4,2433.2,4.34342]
[1750991128874,0.4108,2433.4,2433.2,0.7248]
[1750991129075,2.67693042,2433.4,2432.9,3.2078]
[1750991129368,2.67693042,2433.0,2432.6,3.61873]
[1750991129676,2.8434,2432.9,2432.7,0.41092]
[1750991129880,1.4392,2432.9,2432.7,0.41092]
[1750991130368,1.4392,2432.9,2432.7,1.13042]
[1750991130671,1.4392,2432.9,2432.7,0.7195]
[1750991130873,1.85009,2432.9,2432.7,0.7195]
[1750991131780,1.85009,2432.9,2432.7,1.13041]
[1750991134874,1.85009,2432.9,2432.7,0.7195]
[1750991135076,1.85009,2432.9,2432.7,1.13042]
[1750991135377,1.4392,2432.9,2432.7,1.13042]
[1750991135776,1.85009,2432.9,2432.7,1.13042]
[1750991136380,0.4109,2432.8,2432.7,0.7195]
[1750991136583,0.4109,2432.8,2432.6,6.29566042]
[1750991137272,1.85009,2432.9,2432.6,6.29566042]
[1750991137478,1.85009,2432.9,2432.7,0.41091]
[1750991137679,0.4109,2432.8,2432.6,6.29566042]
[1750991138675,0.41091,2432.8,2432.6,6.29566042]
[1750991139287,2.67693042,2432.8,2432.3,6.37267881]
[1750991139474,0.94053479,2432.7,2432.3,0.7295]
[1750991139784,0.41097,2432.4,2432.2,0.41099]
[1750991140282,0.41096,2432.5,2432.3,0.41099]
[1750991140478,0.41097,2432.5,2432.2,0.41099]
[1750991140680,0.41097,2432.4,2432.2,0.41099]
[1750991140876,0.41098,2432.4,2432.1,0.7295]
[1750991141186,0.6937,2432.3,2432.2,0.411]
[1750991141484,0.6937,2432.3,2432.1,0.7295]
[1750991141485,1.10469,2432.3,2432.1,1.14051]
[1750991141895,1.10469,2432.3,2432.1,0.7295]
[1750991141896,0.6937,2432.3,2432.1,0.7295]
[1750991142090,1.10469,2432.3,2432.1,1.14052]
[1750991142493,0.411,2432.2,2432.0,3.61883]
[1750991143198,0.6937,2432.3,2432.1,0.41101]
[1750991143387,1.10469,2432.3,2432.0,3.2078]
[1750991143787,1.10469,2432.3,2432.0,3.61883]
[1750991144200,0.41101,2432.2,2432.0,3.2078]
[1750991144495,1.1047,2432.3,2432.0,3.61883]
[1750991145800,1.1047,2432.3,2432.1,0.41101]
[1750991145990,0.411,2432.2,2432.1,2.67693042]
[1750991147395,3.2078,2432.4,2432.3,0.41099]
[1750991147690,6.91392,2432.7,2432.5,0.41095]
[1750991147895,0.93954479,2432.6,2432.5,2.67693042]
[1750991148113,6.91392,2432.7,2432.5,2.67693042]
[1750991148296,6.91392,2432.7,2432.5,3.40063042]
[1750991148800,0.41093,2432.6,2432.5,3.40063042]
[1750991148998,6.91393,2432.7,2432.5,3.81158042]
[1750991149201,3.2078,2433.1,2432.6,3.2078]
[1750991149494,9.7108,2433.5,2433.0,2.67693042]
[1750991149801,0.93917018,2433.4,2433.3,0.41081]
[1750991150298,6.91377,2433.6,2433.3,0.41081]
[1750991150501,0.93908056,2433.5,2433.3,0.41081]
[1750991150801,0.41078,2433.5,2433.2,0.41082]
[1750991151002,0.41078,2433.5,2433.2,3.08775042]
[1750991151193,6.91378,2433.6,2433.3,0.41081]
[1750991151901,0.41078,2433.5,2433.2,3.08775042]
[1750991152201,6.503,2433.6,2433.2,2.67693042]
[1750991152400,0.6832,2433.7,2433.2,6.29555042]
[1750991152601,0.41078,2433.5,2433.2,6.29555042]
[1750991152899,7.1862,2433.7,2433.2,2.67693042]
[1750991153099,5.88473042,2433.5,2433.1,1.3826]
[1750991153299,3.2078,2433.2,2433.1,0.6793]
[1750991153702,3.2078,2433.2,2432.7,7.61241]
[1750991153898,0.41085,2433.1,2432.8,1.07449]
[1750991154093,3.2078,2433.2,2432.8,0.6636]
[1750991154293,1.11257,2433.0,2432.8,0.6636]
[1750991154801,0.41088,2432.9,2432.8,0.6636]
[1750991156204,0.41088,2432.9,2432.6,0.41092]
[1750991156394,0.41088,2432.9,2432.6,1.10282]
[1750991156591,0.41088,2432.9,2432.7,0.41091]
[1750991157101,1.11258,2433.0,2432.8,0.4109]
[1750991157497,0.41089,2432.9,2432.6,0.6919]
[1750991157898,0.7017,2433.0,2432.6,0.6919]
[1750991158091,1.11254,2433.0,2432.7,0.41087]
[1750991159005,0.41085,2432.9,2432.6,1.10278]
[1750991159392,0.41085,2432.9,2432.7,0.41088]
[1750991159600,1.11254,2433.0,2432.7,0.41088]
[1750991160000,0.41085,2432.9,2432.6,0.6919]
[1750991160406,0.41085,2432.9,2432.7,0.41087]
[1750991160806,0.41085,2432.9,2432.6,0.6919]
[1750991161104,1.11254,2433.0,2432.7,0.41087]
[1750991161317,0.7017,2433.0,2432.8,0.41086]
[1750991161505,0.7017,2433.0,2432.7,2.67693042]
[1750991161804,0.7017,2433.0,2432.8,0.41085]
[1750991162295,0.7017,2433.0,2432.9,0.6856]
[1750991162494,1.08761,2433.1,2432.9,0.6856]
[1750991163199,0.6768,2433.1,2432.9,0.6856]
[1750991163394,0.6768,2433.1,2432.9,1.09644]
[1750991163801,1.343,2433.1,2432.9,1.09644]
[1750991164201,0.6662,2433.1,2433.0,0.41083]
[1750991164397,0.6662,2433.1,2432.9,3.77337042]
[1750991165499,1.07702,2433.1,2432.6,3.2078]
[1750991165698,0.41083,2433.0,2432.8,0.41085]
[1750991165903,3.34313042,2433.1,2432.7,0.6886]
[1750991166207,0.41083,2433.0,2432.8,0.41086]
[1750991166698,1.07702,2433.1,2432.8,0.41086]
[1750991167113,1.07702,2433.1,2432.9,0.41084]
[1750991167314,0.6662,2433.1,2433.0,0.41083]
[1750991167607,1.07701,2433.1,2433.0,0.6851]
[1750991168613,0.41083,2433.0,2432.8,0.41086]
[1750991168806,0.41085,2432.9,2432.8,0.6851]
[1750991169111,0.41084,2433.0,2432.8,0.6851]
[1750991169312,0.41084,2433.0,2432.8,1.09596]
[1750991169811,0.41084,2433.0,2432.8,0.6851]
[1750991170220,0.41084,2433.0,2432.8,1.09596]
[1750991170720,0.41083,2433.0,2432.8,1.09596]
[1750991171019,0.41083,2433.0,2432.8,0.6851]
[1750991171211,0.41083,2433.0,2432.8,1.09596]
[1750991171514,0.41083,2433.0,2432.9,1.4535]
[1750991172918,0.41083,2433.0,2432.8,0.6851]
[1750991173119,0.41083,2433.0,2432.8,1.09596]
[1750991173820,0.41083,2433.0,2432.8,0.6851]